fUSD/lending_fUSD_20251013
["ID","MTS","AMOUNT","RATE_DAILY","PERIOD"]
[391128536,1760379043603,-9552.16786547,0.00020706,2]
[391128537,1760379043613,-721.12765535,0.00020706,2]
[391128538,1760379043622,-24.44042417,0.00020706,2]
[391128539,1760379043642,-1975.55957583,0.00020706,2]
[391128540,1760379043652,-277.35679052,0.00020706,2]
[391128541,1760379043661,-2000.0,0.00020706,2]
[391128542,1760379043670,-842.83918875,0.00020706,2]
[391128543,1760379043679,-157.56507449,0.00020706,2]
[391128544,1760379043688,-1750.11079445,0.00020706,2]
[391128545,1760379043698,-322.6107,0.00020706,2]
[391128546,1760379043707,-214.38159764,0.00020706,2]
[391128547,1760379043716,-6679.09734431,0.00020761,2]
[391128548,1760379043726,-832.0,0.00020991,2]
[391128549,1760379043736,-787.411,0.00021299,2]
[391128550,1760379043745,-3405.0,0.00021299,2]
[391128551,1760379043755,-1266.0,0.00021299,2]
[391128552,1760379043764,-2049.0,0.00021299,2]
[391128553,1760379043774,-1309.548,0.00021299,2]
[391128554,1760379043783,-571.0,0.00021299,2]
[391128555,1760379043792,-1587.0,0.00021299,2]
[391128556,1760379043802,-816.0,0.00021299,2]
[391128557,1760379043811,-4013.0,0.00021299,2]
[391128558,1760379043822,-622.0,0.00021299,2]
[391128559,1760379043831,-6441.0,0.00021299,2]
[391128560,1760379043841,-1290.626,0.00021299,2]
[391128561,1760379043851,-1671.65025644,0.00021471,2]
[391128562,1760379043861,-4457.63933375,0.00021471,2]
[391128563,1760379043871,-151.0,0.00021918,7]
[391128564,1760379043880,-151.0,0.00021918,7]
[391128565,1760379043889,-151.0,0.00021918,7]
[391128566,1760379043898,-151.0,0.00021918,7]
[391128567,1760379043907,-151.0,0.00021918,7]
[391128568,1760379043917,-217.36907,0.00021918,7]
[391128569,1760379043926,-217.36907,0.00021918,7]
[391128570,1760379043935,-217.36907,0.00021918,7]
[391128571,1760379043944,-217.36907,0.00021918,7]
[391128572,1760379043954,-6145.0,0.00021998,2]
[391128573,1760379043963,-177.92628437,0.00022,2]
[391128574,1760379043972,-248.02173749,0.00022075,2]
[391128575,1760379043981,-322.6107,0.00022075,2]
[391128576,1760379043990,-1185.79,0.00022401,30]
[391128577,1760379043999,-832.0,0.000229,2]
[391128578,1760379044009,-625.43250017,0.00023,7]
[391128579,1760379044018,-1671.65025644,0.00023114,2]
[391128580,1760379044027,-4457.63933375,0.00023114,2]
[391128581,1760379044036,-317.69551553,0.00023333,7]
[391128582,1760379044045,-2000.0,0.000234,2]
[391128583,1760379044055,-498.57786207,0.00023445,2]
[391128584,1760379044065,-748.0,0.00023815,2]
[391128585,1760379044075,-308.16,0.00023836,2]
[391128586,1760379044090,-710.46824831,0.00023886,2]
[391128587,1760379044099,-1001.42520035,0.00024,14]
[391128588,1760379044108,-955.72485712,0.00024,14]
[391128589,1760379044118,-846.0,0.00024299,2]
[391128590,1760379044128,-4013.0,0.00024299,2]
[391128591,1760379044137,-600.592,0.00024299,2]
[391128592,1760379044146,-666.0,0.00024336,3]
[391128593,1760379044157,-1985.075,0.00024424,7]
[391128594,1760379044166,-500.0,0.00024531,2]
[391128595,1760379044176,-500.0,0.00024531,2]
[391128596,1760379044185,-500.0,0.00024531,2]
[391128597,1760379044194,-500.0,0.00024531,2]
[391128598,1760379044203,-500.0,0.00024531,2]
[391128599,1760379044212,-612.25781954,0.00024531,2]
[391128600,1760379044221,-500.0,0.00024531,2]
[391128601,1760379044230,-500.0,0.00024531,2]
[391128602,1760379044239,-500.0,0.00024531,2]
[391128603,1760379044248,-500.0,0.00024531,2]
[391128604,1760379044257,-502.61836046,0.00024531,2]
[391128605,1760379044266,-500.0,0.00024531,2]
[391128606,1760379044276,-500.0,0.00024531,2]
[391128607,1760379044285,-866.14912017,0.00024531,2]
[391128608,1760379044293,-520.49455299,0.00024531,2]
[391128609,1760379044303,-277.19117016,0.00024531,2]
[391128610,1760379044312,-500.0,0.00024531,2]
[391128611,1760379044323,-500.0,0.00024531,2]
[391128612,1760379044332,-500.0,0.00024531,2]
[391128613,1760379044341,-675.55392124,0.00024531,2]
[391128614,1760379044350,-500.0,0.00024531,2]
[391128615,1760379044360,-500.0,0.00024531,2]
[391128616,1760379044369,-311.91969394,0.00024531,2]
[391128617,1760379044378,-500.0,0.00024531,2]
[391128618,1760379044387,-500.0,0.00024531,2]
[391128619,1760379044396,-500.0,0.00024531,2]
[391128620,1760379044405,-500.0,0.00024531,2]
[391128621,1760379044414,-500.0,0.00024531,2]
[391128622,1760379044424,-500.0,0.00024531,2]
[391128623,1760379044433,-873.28798425,0.00024531,2]
[391128624,1760379044441,-500.0,0.00024531,2]
[391128625,1760379044450,-537.71321453,0.00024531,2]
[391128626,1760379044460,-500.0,0.00024531,2]
[391128627,1760379044469,-556.25059095,0.00024531,2]
[391128628,1760379044478,-500.0,0.00024531,2]
[391128629,1760379044487,-500.0,0.00024531,2]
[391128630,1760379044497,-500.0,0.00024531,2]
[391128631,1760379044506,-500.0,0.00024531,2]
[391128632,1760379044515,-500.0,0.00024531,2]
[391128633,1760379044524,-577.6824096,0.00024531,2]
[391128634,1760379044534,-161.33102286,0.0002455,15]
[391128635,1760379044543,-151.25,0.00024658,2]
[391128636,1760379044552,-1000.0,0.00024658,2]
[391128637,1760379044561,-151.0,0.00024658,7]
[391128638,1760379044574,-151.0,0.00024658,7]
[391128639,1760379044583,-209.908714,0.00024658,7]
[391128640,1760379044592,-209.908714,0.00024658,7]
[391128641,1760379044601,-209.908714,0.00024658,7]
[391128642,1760379044611,-209.908714,0.00024658,7]
[391128643,1760379044620,-152.633219,0.00024658,7]
[391128644,1760379044630,-152.633219,0.00024658,7]
[391128645,1760379044639,-152.633219,0.00024658,7]
[391128646,1760379044648,-152.633219,0.00024658,7]
[391128647,1760379044658,-475.32661018,0.0002466,7]
[391128648,1760379044667,-165.27947311,0.000247,2]
[391128649,1760379044676,-1671.65025644,0.00024757,2]
[391128650,1760379044686,-4457.63933375,0.00024757,2]
[391128651,1760379044695,-167.11936272,0.0002479,2]
[391128652,1760379044704,-3734.52219907,0.000248,2]
[391128653,1760379044713,-167.37100735,0.000248,2]
[391128654,1760379044723,-64626.3769301,0.000248,8]
[391128655,1760379044732,-475.32661018,0.000248,3]
[391128656,1760379044742,-151.0,0.000248,7]
[391128657,1760379044751,-151.0,0.000248,7]
[391128658,1760379044762,-151.0,0.000248,7]
[391128659,1760379044771,-151.0,0.000248,7]
[391128660,1760379044781,-151.0,0.000248,7]
[391128661,1760379044791,-151.0,0.000248,7]
[391128662,1760379044800,-151.0,0.000248,7]
[391128663,1760379044809,-195.7817825,0.000248,7]
[391128664,1760379044821,-151.0,0.000248,7]
[391128665,1760379044831,-151.0,0.000248,7]
[391128666,1760379044840,-151.0,0.000248,7]
[391128667,1760379044850,-151.0,0.000248,7]
[391128668,1760379044859,-151.0,0.000248,7]
[391128669,1760379044869,-209.908714,0.000248,7]
[391128670,1760379044879,-209.908714,0.000248,7]
[391128671,1760379044888,-209.908714,0.000248,7]
[391128672,1760379044898,-209.908714,0.000248,7]
[391128673,1760379044908,-209.908714,0.000248,7]
[391128674,1760379044918,-209.908714,0.000248,7]
[391128675,1760379044928,-209.908714,0.000248,7]
[391128676,1760379044938,-209.908714,0.000248,7]
[391128677,1760379044948,-217.36907,0.000248,7]
[391128678,1760379044957,-217.36907,0.000248,7]
[391128679,1760379044967,-217.36907,0.000248,7]
[391128680,1760379044976,-217.36907,0.000248,7]
[391128681,1760379044985,-217.36907,0.000248,7]
[391128682,1760379044994,-217.36907,0.000248,7]
[391128683,1760379045003,-217.36907,0.000248,7]
[391128684,1760379045013,-217.36907,0.000248,7]
[391128685,1760379045022,-700.0,0.000248,9]
[391128686,1760379045031,-151.0,0.000248,7]
[391128687,1760379045040,-152.784125,0.000248,7]
[391128688,1760379045049,-151.0,0.000248,7]
[391128689,1760379045058,-151.0,0.000248,7]
[391128690,1760379045069,-381843.557332,0.000248,3]
[391128691,1760379045078,-151.0,0.000248,7]
[391128692,1760379045091,-151.0,0.000248,7]
[391128693,1760379045100,-151.0,0.000248,7]
[391128694,1760379045109,-151.0,0.000248,7]
[391128695,1760379045118,-177.956168,0.000248,7]
[391128696,1760379045129,-152.633219,0.000248,7]
[391128697,1760379045139,-152.633219,0.000248,7]
[391128698,1760379045148,-152.633219,0.000248,7]
[391128699,1760379045159,-152.633219,0.000248,7]
[391128700,1760379045171,-152.633219,0.000248,7]
[391128701,1760379045182,-152.633219,0.000248,7]
[391128702,1760379045192,-152.633219,0.000248,7]
[391128703,1760379045202,-152.633219,0.000248,7]
[391128704,1760379045212,-152.21667,0.000248,7]
[391128705,1760379045222,-151.964974,0.000248,7]
[391128706,1760379045232,-151.0,0.000248,7]
[391128707,1760379045243,-151.0,0.000248,7]
[391128708,1760379045252,-177.00460317,0.00024813,18]
[391128709,1760379045261,-5000.0,0.00024837,2]
[391128710,1760379045271,-150.0,0.00024889,2]
[391128711,1760379045280,-84854.1238516,0.0002489,3]
[391128712,1760379045289,-151.0,0.000249,7]
[391128713,1760379045298,-151.0,0.000249,7]
[391128714,1760379045307,-151.0,0.000249,7]
[391128715,1760379045318,-151.0,0.000249,7]
[391128716,1760379045327,-152.118785,0.000249,7]
[391128717,1760379045337,-209.908714,0.000249,7]
[391128718,1760379045346,-209.908714,0.000249,7]
[391128719,1760379045356,-209.908714,0.000249,7]
[391128720,1760379045365,-209.908714,0.000249,7]
[391128722,1760379045375,-217.36907,0.000249,7]
[391128723,1760379045383,-217.36907,0.000249,7]
[391128724,1760379045392,-217.36907,0.000249,7]
[391128725,1760379045401,-217.36907,0.000249,7]
[391128726,1760379045410,-1100.0,0.000249,9]
[391128728,1760379045420,-151.0,0.000249,7]
[391128730,1760379045428,-151.0,0.000249,7]
[391128732,1760379045438,-450444.152144,0.000249,3]
[391128733,1760379045447,-152.633219,0.000249,7]
[391128734,1760379045456,-152.633219,0.000249,7]
[391128735,1760379045465,-152.633219,0.000249,7]
[391128736,1760379045474,-152.633219,0.000249,7]
[391128738,1760379045484,-274.854886,0.000249,7]
[391128741,1760379045818,-216.0,0.0002493,30]
[391128742,1760379045849,-500.0,0.00024932,2]
[391128743,1760379045859,-500.0,0.00024932,2]
[391128744,1760379045869,-500.0,0.00024932,2]
[391128745,1760379045878,-500.0,0.00024932,2]
[391128746,1760379045888,-500.0,0.00024932,2]
[391128747,1760379045897,-500.0,0.00024932,2]
[391128748,1760379045907,-500.0,0.00024932,2]
[391128749,1760379045916,-500.0,0.00024932,2]
[391128750,1760379045926,-500.0,0.00024932,2]
[391128751,1760379045935,-500.0,0.00024932,2]
[391128752,1760379045944,-500.0,0.00024932,2]
[391128753,1760379045954,-500.0,0.00024932,2]
[391128754,1760379045964,-500.0,0.00024932,2]
[391128755,1760379045973,-500.0,0.00024932,2]
[391128756,1760379045983,-502.15160083,0.00025,7]
[391128757,1760379045992,-200.0,0.000251,7]
[391128758,1760379046001,-250.87,0.00025395,2]
[391128759,1760379046011,-475.32661018,0.000255,3]
[391128760,1760379046021,-251.02896261,0.00025519,2]
[391128761,1760379046030,-153.15329576,0.00025523,2]
[391128762,1760379046039,-1185.79,0.00025624,30]
[391128763,1760379046048,-177.00460317,0.00025626,20]
[391128764,1760379046057,-150.0,0.00025767,2]
[391128765,1760379046067,-150.0,0.00025767,2]
[391128766,1760379046077,-150.0,0.00025767,2]
[391128767,1760379046090,-150.0,0.00025767,2]
[391128768,1760379046099,-150.0,0.00025767,2]
[391128769,1760379046108,-150.0,0.00025767,2]
[391128770,1760379046118,-150.55201155,0.00025767,2]
[391128771,1760379046127,-150.57824688,0.00025767,2]
[391128772,1760379046136,-150.0,0.00025767,2]
[391128773,1760379046145,-150.0,0.00025767,2]
[391128774,1760379046155,-150.0,0.00025767,2]
[391128775,1760379046164,-150.0,0.00025767,2]
[391128776,1760379046173,-150.0,0.00025767,2]
[391128777,1760379046183,-200.22318647,0.00026,2]
[391128778,1760379046192,-475.32661018,0.000263,3]
[391128779,1760379046202,-153.15329576,0.0002634,2]
[391128780,1760379046211,-1671.65025644,0.00026399,2]
[391128781,1760379046220,-4457.63933375,0.00026399,2]
[391128782,1760379046229,-177.00460317,0.00026439,22]
[391128783,1760379046239,-152.0,0.00026496,3]
[391128784,1760379046248,-349.56,0.00026676,2]
[391128785,1760379046258,-152.1,0.00026816,2]
[391128786,1760379046267,-168.0,0.00026886,2]
[391128787,1760379046278,-18017.7660858,0.0002699,3]
[391128788,1760379046287,-2774.0,0.00027,5]
[391128789,1760379046298,-456.50581661,0.00027,30]
[391128790,1760379046308,-20000.0,0.00027,2]
[391128791,1760379046317,-1472.0,0.000271,2]
[391128792,1760379046326,-152.0,0.00027128,4]
[391128793,1760379046336,-153.15329576,0.00027158,2]
[391128794,1760379046345,-177.00460317,0.00027252,23]
[391128795,1760379046355,-200.0,0.00027291,2]
[391128796,1760379046365,-214.0,0.00027299,2]
[391128797,1760379046374,-12980.91367981,0.00027387,3]
[391128798,1760379046416,-3652.600003,0.00027387,3]
[391128799,1760379046477,-159.80927871,0.00019124,2]
[391128800,1760379046487,-151.0,0.00020706,2]
[391128801,1760379046497,-1744.75818236,0.00027387,3]
[391128802,1760379046508,-829.57440972,0.00027387,3]
[391128803,1760379046519,-1048.575,0.00027387,3]
[391128804,1760379046531,-15779.11089671,0.00027387,3]
[391128805,1760379046540,-500.0,0.00027397,10]
[391128806,1760379046550,-500.0,0.00027397,10]
[391128807,1760379046559,-500.0,0.00027397,10]
[391128808,1760379046570,-500.0,0.00027397,10]
[391128809,1760379046580,-500.0,0.00027397,10]
[391128810,1760379046589,-500.0,0.00027397,10]
[391128811,1760379046599,-500.0,0.00027397,10]
[391128812,1760379046608,-500.0,0.00027397,10]
[391128813,1760379046618,-500.0,0.00027397,10]
[391128814,1760379046629,-500.0,0.00027397,10]
[391128815,1760379046639,-500.0,0.00027397,10]
[391128816,1760379046648,-500.0,0.00027397,10]
[391128817,1760379046658,-500.0,0.00027397,10]
[391128818,1760379046667,-445.88910329,0.00027397,10]
[391128819,1760379046679,-54.11089671,0.00027397,10]
[391128820,1760379046688,-500.0,0.00027397,10]
[391128821,1760379046697,-11.52590331,0.00027397,10]
[391128822,1760379046708,-280.87,0.00027397,10]
[391128823,1760379046720,-38.95748789,0.00027397,10]
[391128824,1760379046729,-500.0,0.00027397,60]
[391128825,1760379046738,-500.0,0.00027397,60]
[391128826,1760379046748,-150.0,0.00027397,60]
[391128827,1760379046757,-150.0,0.00027397,60]
[391128828,1760379046766,-223.22999057,0.00027397,60]
[391128829,1760379046776,-500.0,0.00027397,60]
[391128830,1760379046785,-500.0,0.00027397,60]
[391128831,1760379046794,-500.0,0.00027397,60]
[391128832,1760379046803,-150.0,0.00027397,60]
[391128833,1760379046814,-150.0,0.00027397,60]
[391128834,1760379046824,-150.38017949,0.00027397,60]
[391128835,1760379046834,-150.0,0.00027397,60]
[391128836,1760379046843,-150.0,0.00027397,60]
[391128837,1760379046853,-150.0,0.00027397,60]
[391128838,1760379046862,-150.0,0.00027397,60]
[391128839,1760379046871,-11.48591792,0.00027397,60]
[391128840,1760379046883,-180.53447617,0.00027397,60]
[391128841,1760379046892,-151.0,0.00027397,7]
[391128842,1760379046903,-209.908714,0.00027397,7]
[391128843,1760379046913,-209.908714,0.00027397,7]
[391128844,1760379046922,-209.908714,0.00027397,7]
[391128845,1760379046931,-209.908723,0.00027397,7]
[391128846,1760379046941,-150.0,0.00027397,60]
[391128847,1760379046950,-217.36907,0.00027397,7]
[391128848,1760379046959,-500.0,0.00027397,60]
[391128849,1760379046968,-217.36907,0.00027397,7]
[391128850,1760379046977,-500.0,0.00027397,60]
[391128851,1760379046986,-217.36907,0.00027397,7]
[391128852,1760379046995,-150.0,0.00027397,60]
[391128853,1760379047005,-500.0,0.00027397,60]
[391128854,1760379047014,-150.0,0.00027397,60]
[391128855,1760379047023,-217.36907086,0.00027397,7]
[391128856,1760379047032,-560.0,0.00027397,60]
[391128857,1760379047041,-560.0,0.00027397,60]
[391128858,1760379047050,-560.0,0.00027397,60]
[391128859,1760379047060,-560.0,0.00027397,60]
[391128860,1760379047071,-560.0,0.00027397,60]
[391128861,1760379047085,-560.0,0.00027397,60]
[391128862,1760379047094,-560.0,0.00027397,60]
[391128863,1760379047104,-560.0,0.00027397,60]
[391128864,1760379047113,-560.0,0.00027397,60]
[391128865,1760379047122,-560.0,0.00027397,60]
[391128866,1760379047132,-560.0,0.00027397,60]
[391128867,1760379047141,-560.0,0.00027397,60]
[391128868,1760379047151,-560.0,0.00027397,60]
[391128869,1760379047160,-560.0,0.00027397,60]
[391128870,1760379047169,-560.0,0.00027397,60]
[391128871,1760379047178,-560.0,0.00027397,60]
[391128872,1760379047187,-560.0,0.00027397,60]
[391128873,1760379047196,-560.0,0.00027397,60]
[391128874,1760379047205,-560.0,0.00027397,60]
[391128875,1760379047214,-560.0,0.00027397,60]
[391128876,1760379047224,-560.0,0.00027397,60]
[391128877,1760379047232,-560.0,0.00027397,60]
[391128878,1760379047242,-560.0,0.00027397,60]
[391128879,1760379047251,-560.0,0.00027397,60]
[391128880,1760379047263,-500.0,0.00027397,60]
[391128881,1760379047272,-150.0,0.00027397,7]
[391128882,1760379047282,-150.0,0.00027397,60]
[391128883,1760379047292,-500.0,0.00027397,60]
[391128884,1760379047302,-425.0,0.00027397,60]
[391128885,1760379047313,-425.0,0.00027397,60]
[391128886,1760379047324,-425.0,0.00027397,60]
[391128887,1760379047334,-425.0,0.00027397,60]
[391128888,1760379047343,-425.0,0.00027397,60]
[391128889,1760379047352,-425.0,0.00027397,60]
[391128890,1760379047362,-425.0,0.00027397,60]
[391128891,1760379047372,-425.0,0.00027397,60]
[391128892,1760379047381,-425.0,0.00027397,60]
[391128893,1760379047390,-425.0,0.00027397,60]
[391128894,1760379047399,-425.0,0.00027397,60]
[391128895,1760379047408,-425.0,0.00027397,60]
[391128896,1760379047417,-425.0,0.00027397,60]
[391128897,1760379047427,-425.0,0.00027397,60]
[391128898,1760379047438,-425.0,0.00027397,60]
[391128899,1760379047447,-425.0,0.00027397,60]
[391128900,1760379047456,-425.0,0.00027397,60]
[391128901,1760379047465,-425.0,0.00027397,60]
[391128902,1760379047474,-425.0,0.00027397,60]
[391128903,1760379047483,-425.0,0.00027397,60]
[391128904,1760379047493,-425.0,0.00027397,60]
[391128905,1760379047502,-425.0,0.00027397,60]
[391128906,1760379047511,-425.0,0.00027397,60]
[391128907,1760379047520,-447.21484496,0.00027397,60]
[391128908,1760379047529,-500.0,0.00027397,60]
[391128909,1760379047539,-500.0,0.00027397,60]
[391128910,1760379047548,-500.0,0.00027397,60]
[391128911,1760379047557,-500.0,0.00027397,60]
[391128912,1760379047566,-500.0,0.00027397,60]
[391128913,1760379047575,-500.0,0.00027397,60]
[391128914,1760379047584,-500.0,0.00027397,60]
[391128915,1760379047593,-500.0,0.00027397,60]
[391128916,1760379047603,-500.0,0.00027397,60]
[391128917,1760379047611,-500.0,0.00027397,60]
[391128918,1760379047620,-500.0,0.00027397,60]
[391128919,1760379047629,-500.0,0.00027397,60]
[391128920,1760379047638,-500.0,0.00027397,60]
[391128921,1760379047647,-500.0,0.00027397,60]
[391128922,1760379047656,-500.0,0.00027397,60]
[391128923,1760379047665,-500.0,0.00027397,60]
[391128924,1760379047674,-500.0,0.00027397,60]
[391128925,1760379047683,-500.0,0.00027397,60]
[391128926,1760379047692,-648.0,0.00027397,60]
[391128927,1760379047701,-500.0,0.00027397,60]
[391128928,1760379047710,-559.0,0.00027397,60]
[391128929,1760379047720,-500.0,0.00027397,60]
[391128930,1760379047739,-1047.0,0.00027397,14]
[391128931,1760379047749,-500.0,0.00027397,60]
[391128932,1760379047759,-448.0,0.00027397,60]
[391128933,1760379047768,-151.0,0.00027397,7]
[391128934,1760379047777,-151.0,0.00027397,7]
[391128935,1760379047787,-500.0,0.00027397,60]
[391128936,1760379047797,-150.0,0.00027397,2]
[391128937,1760379047807,-500.0,0.00027397,60]
[391128938,1760379047817,-152.633219,0.00027397,7]
[391128939,1760379047826,-152.633219,0.00027397,7]
[391128940,1760379047836,-152.633219,0.00027397,7]
[391128941,1760379047845,-152.633213,0.00027397,7]
[391128942,1760379047855,-150.0,0.00027397,2]
[391128943,1760379047864,-500.0,0.00027397,60]
[391128944,1760379047873,-150.0,0.00027397,2]
[391128945,1760379047883,-500.0,0.00027397,15]
[391128946,1760379047892,-500.0,0.00027397,15]
[391128947,1760379047902,-500.0,0.00027397,15]
[391128948,1760379047912,-500.0,0.00027397,15]
[391128949,1760379047921,-245.09588451,0.00027397,15]
[391128950,1760379047930,-151.0,0.00027397,30]
[391128951,1760379047939,-151.0,0.00027397,30]
[391128952,1760379047949,-151.0,0.00027397,30]
[391128953,1760379047958,-151.0,0.00027397,30]
[391128954,1760379047967,-245.893433,0.00027397,30]
[391128955,1760379047976,-234.85278616,0.000274,120]
[391128956,1760379047985,-151.0,0.00027432,30]
[391128957,1760379047995,-151.0,0.00027442,30]
[391128958,1760379048006,-151.0,0.00027442,30]
[391128959,1760379048016,-151.0,0.00027442,30]
[391128960,1760379048026,-500.0,0.00027452,60]
[391128961,1760379048036,-500.0,0.00027452,60]
[391128962,1760379048046,-150.0,0.00027452,60]
[391128963,1760379048057,-150.0,0.00027452,60]
[391128964,1760379048067,-500.0,0.00027452,60]
[391128965,1760379048077,-500.0,0.00027452,60]
[391128966,1760379048090,-500.0,0.00027452,60]
[391128967,1760379048101,-200.28513781,0.00027452,60]
[391128968,1760379048111,-150.0,0.00027452,60]
[391128969,1760379048121,-150.0,0.00027452,60]
[391128970,1760379048133,-150.0,0.00027452,60]
[391128971,1760379048142,-150.0,0.00027452,60]
[391128972,1760379048152,-150.0,0.00027452,60]
[391128973,1760379048163,-500.0,0.00027452,60]
[391128974,1760379048172,-500.0,0.00027452,60]
[391128975,1760379048181,-150.36135838,0.00027452,60]
[391128976,1760379048191,-500.0,0.00027452,60]
[391128977,1760379048200,-150.17779974,0.00027452,60]
[391128978,1760379048210,-500.0,0.00027452,60]
[391128979,1760379048220,-150.0,0.00027452,60]
[391128980,1760379048229,-500.0,0.00027452,60]
[391128981,1760379048239,-500.0,0.00027452,60]
[391128982,1760379048248,-559.0,0.00027452,60]
[391128983,1760379048257,-500.0,0.00027452,60]
[391128984,1760379048267,-1047.0,0.00027452,14]
[391128985,1760379048277,-500.0,0.00027452,60]
[391128986,1760379048287,-448.0,0.00027452,60]
[391128987,1760379048297,-500.0,0.00027452,60]
[391128988,1760379048306,-500.0,0.00027452,60]
[391128989,1760379048319,-500.0,0.00027452,60]
[391128990,1760379048330,-180.0,0.00027464,120]
[391128991,1760379048340,-18017.7660858,0.00027488,3]
[391128992,1760379048350,-3450.24814169,0.00027498,7]
[391128993,1760379048359,-6900.49628338,0.00027498,7]
[391128994,1760379048369,-10350.74442507,0.00027498,7]
[391128995,1760379048378,-13800.99256676,0.00027498,7]
[391128996,1760379048388,-500.0,0.00027507,60]
[391128997,1760379048398,-500.0,0.00027507,60]
[391128998,1760379048408,-150.0,0.00027507,60]
[391128999,1760379048417,-150.0,0.00027507,60]
[391129000,1760379048427,-500.0,0.00027507,60]
[391129001,1760379048437,-500.0,0.00027507,60]
[391129002,1760379048446,-500.0,0.00027507,60]
[391129003,1760379048455,-200.61234306,0.00027507,60]
[391129004,1760379048466,-150.0,0.00027507,60]
[391129005,1760379048475,-150.0,0.00027507,60]
[391129006,1760379048484,-150.0,0.00027507,60]
[391129007,1760379048494,-500.0,0.00027507,60]
[391129008,1760379048503,-500.0,0.00027507,60]
[391129009,1760379048512,-500.0,0.00027507,60]
[391129010,1760379048522,-500.0,0.00027507,60]
[391129011,1760379048532,-200.48027755,0.00027507,60]
[391129012,1760379048542,-500.0,0.00027507,60]
[391129013,1760379048552,-500.0,0.00027507,60]
[391129014,1760379048561,-559.0,0.00027507,60]
[391129015,1760379048572,-500.0,0.00027507,60]
[391129016,1760379048581,-1047.0,0.00027507,14]
[391129017,1760379048591,-573.97473461,0.00027507,60]
[391129018,1760379048601,-448.0,0.00027507,60]
[391129019,1760379048611,-500.0,0.00027507,60]
[391129020,1760379048620,-500.0,0.00027507,60]
[391129021,1760379048629,-500.0,0.00027507,60]
[391129022,1760379048638,-2131.64167961,0.00027529,2]
[391129023,1760379048647,-500.0,0.00027561,60]
[391129024,1760379048657,-500.0,0.00027561,60]
[391129025,1760379048667,-150.0,0.00027561,60]
[391129026,1760379048677,-150.0,0.00027561,60]
[391129027,1760379048687,-290.01983933,0.00027561,60]
[391129028,1760379048697,-500.0,0.00027561,60]
[391129029,1760379048706,-500.0,0.00027561,60]
[391129030,1760379048715,-250.53971989,0.00027561,60]
[391129031,1760379048726,-150.0,0.00027561,60]
[391129032,1760379048736,-150.0,0.00027561,60]
[391129033,1760379048745,-479.84197852,0.00027561,60]
[391129034,1760379048755,-500.0,0.00027561,60]
[391129035,1760379048764,-500.0,0.00027561,60]
[391129036,1760379048773,-500.0,0.00027561,60]
[391129037,1760379048782,-500.0,0.00027561,60]
[391129038,1760379048792,-500.0,0.00027561,60]
[391129039,1760379048802,-559.0,0.00027561,60]
[391129040,1760379048811,-500.0,0.00027561,60]
[391129041,1760379048822,-1047.0,0.00027561,14]
[391129042,1760379048832,-448.0,0.00027561,60]